bitfinex/quotes_SOLUSD_20250507
["timestamp","ask_amount","ask_price","bid_price","bid_amount"]
[1746584706481,151.73859141,148.19,148.14,14.03859141]
[1746584706666,151.73859141,148.19,148.15,14.03859141]
[1746584706991,151.73859141,148.19,148.14,14.03859141]
[1746584707486,137.7,148.19,148.14,14.03859141]
[1746584707807,14.03859141,148.18,148.13,37.66648582]
[1746584709271,14.03859141,148.17,148.13,6.75082697]
[1746584709588,14.03859141,148.16,148.13,6.75082697]
[1746584710266,14.03859141,148.17,148.13,6.75082697]
[1746584710869,14.03859141,148.17,148.13,20.78941838]
[1746584712291,14.03859141,148.17,148.13,6.75082697]
[1746584712665,14.03859141,148.17,148.13,20.78941838]
[1746584712960,14.03859141,148.18,148.13,20.78941838]
[1746584713784,14.03859141,148.18,148.14,14.03859141]
[1746584714187,14.03859141,148.17,148.13,16.87706744]
[1746584714789,14.03859141,148.15,148.1,6.75219446]
[1746584714972,14.03859141,148.14,148.1,6.75219446]
[1746584715172,14.03859141,148.13,148.1,6.75219446]
[1746584716186,14.03859141,148.12,148.09,24.21248812]
[1746584716486,14.03859141,148.11,148.08,6.75294699]
[1746584716685,14.03859141,148.11,148.07,14.03859141]
[1746584716989,14.03859141,148.11,148.07,6.75343591]
[1746584717410,14.03859141,148.11,148.03,1.6169]
[1746584717411,14.03859141,148.08,148.03,1.6169]
[1746584717569,14.03859141,148.07,148.03,1.6169]
[1746584717770,14.03859141,148.08,148.03,1.6169]
[1746584718077,14.03859141,148.08,148.04,6.75460673]
[1746584718477,14.03859141,148.07,148.04,6.75460673]
[1746584718891,14.03859141,148.08,148.04,6.75460673]
[1746584719102,14.03859141,148.08,148.04,20.79319814]
[1746584719482,14.03859141,148.07,148.04,6.75460673]
[1746584719688,139.3626,148.1,148.04,6.75460673]
[1746584719689,14.03859141,148.08,148.04,6.75460673]
[1746584723615,14.03859141,148.07,148.04,6.75460673]
[1746584724717,14.03859141,148.08,148.04,6.75460673]
[1746584725194,14.03859141,148.07,148.04,6.75460673]
[1746584726420,14.03859141,148.07,148.01,6.75630024]
[1746584726718,137.7,148.09,148.01,6.75630024]
[1746584726719,14.03859141,148.06,148.01,6.75630024]
[1746584726894,14.03859141,148.05,148.01,6.75630024]
[1746584727820,137.7,148.04,148.0,6.75665952]
[1746584728010,151.73859141,148.04,148.0,6.75665952]
[1746584729327,14.03859141,148.03,148.0,6.75665952]
[1746584730226,14.03859141,148.02,147.99,17.48]
[1746584731223,137.7,148.03,147.99,17.48]
[1746584731406,14.03859141,148.02,147.99,24.2371995]
[1746584732724,137.7,148.03,147.99,24.2371995]
[1746584733021,14.03859141,148.02,147.99,24.2371995]
[1746584734933,14.03859141,148.01,147.99,24.2371995]
[1746584735160,137.7,148.03,147.98,6.75758255]
[1746584735436,14.03859141,148.01,147.98,6.75758255]
[1746584735837,14.03859141,148.0,147.98,6.75758255]
[1746584736222,14.03859141,148.0,147.97,6.75812664]
[1746584736737,14.03859141,148.0,147.95,18.9791]
[1746584736940,163.7,148.02,147.96,6.75842851]
[1746584736941,14.03859141,147.99,147.96,6.75842851]
[1746584738241,137.7,148.01,147.96,20.79701992]
[1746584738431,14.03859141,148.0,147.96,20.79701992]
[1746584739147,137.7,148.01,147.98,14.03859141]
[1746584739316,137.7,148.01,147.97,14.03859141]
[1746584740240,137.7,148.01,147.96,6.75842851]
[1746584740421,137.7,148.01,147.96,20.79701992]
[1746584740622,151.73859141,148.01,147.96,20.79701992]
[1746584740823,14.03859141,148.0,147.96,6.75842851]
[1746584741025,14.03859141,147.99,147.95,38.2174628]
[1746584741234,151.73859141,148.0,147.95,38.2174628]
[1746584742128,151.73859141,148.0,147.96,14.03859141]
[1746584742549,151.73859141,148.0,147.97,6.75812664]
[1746584743335,137.7,148.0,147.97,20.79671805]
[1746584744135,137.7,148.0,147.97,6.75812664]
[1746584744342,137.7,148.0,147.97,20.79671805]
[1746584744541,137.7,148.0,147.97,6.75812664]
[1746584745256,151.73859141,148.0,147.97,6.75812664]
[1746584745951,137.7,148.0,147.97,6.75812664]
[1746584747252,151.73859141,148.0,147.97,6.75812664]
[1746584747558,137.7,148.0,147.97,6.75812664]
[1746584748353,137.7,148.0,147.97,20.79671805]
[1746584748941,137.7,148.0,147.97,6.75812664]
[1746584751460,151.73859141,148.0,147.97,6.75812664]
[1746584751765,137.7,148.0,147.97,20.79671805]
[1746584753663,137.7,148.0,147.99,14.03859141]
[1746584756569,137.7,148.0,147.99,20.79580473]
[1746584758673,137.7,148.0,147.99,6.75721332]
[1746584758845,26.0,148.02,147.99,6.75721332]
[1746584759040,26.0,148.02,147.99,20.79580473]
[1746584759241,14.03859141,148.01,147.98,6.75759472]
[1746584759544,40.03859141,148.02,147.98,6.75759472]
[1746584760267,40.03859141,148.02,147.98,20.79618613]
[1746584760438,137.7,148.04,147.98,20.79618613]
[1746584760646,163.7,148.03,147.99,14.03859141]
[1746584760845,14.03859141,148.02,147.98,20.79618613]
[1746584761265,14.03859141,148.02,147.98,6.75759472]
[1746584761471,14.03859141,148.02,147.98,20.79618613]
[1746584762069,177.73859141,148.03,147.98,20.79618613]
[1746584763164,177.73859141,148.03,147.99,14.03859141]
[1746584763375,177.73859141,148.03,147.98,20.79618613]
[1746584770174,177.73859141,148.03,147.96,6.75846174]
[1746584770175,14.03859141,148.0,147.96,6.75846174]
[1746584770376,14.03859141,147.99,147.95,24.17887657]
[1746584771270,144.45682727,148.0,147.95,24.17902663]
[1746584771271,14.03859141,147.98,147.95,24.17902663]
[1746584771467,14.03859141,147.99,147.95,24.17902663]
[1746584771850,14.03859141,147.97,147.93,6.75979622]
[1746584772054,14.03859141,147.95,147.92,6.7603274]
[1746584772373,14.03859141,147.96,147.92,20.79891881]
[1746584773172,137.7,147.98,147.95,14.03859141]
[1746584773347,26.0,148.0,147.97,14.03859141]
[1746584773549,137.7,148.01,147.98,14.03859141]
[1746584774076,137.7,148.01,147.99,14.03859141]
[1746584774583,137.7,148.01,147.99,6.75721332]
[1746584775152,137.7,148.01,148.0,14.03859141]
[1746584775450,137.7,148.01,147.99,20.79580473]
[1746584775854,137.7,148.01,147.99,6.75721332]
[1746584776077,137.7,148.01,147.99,20.79580473]
[1746584779572,137.7,148.01,147.99,6.75721332]
[1746584780165,137.7,148.01,147.99,20.79580473]
[1746584782085,137.7,148.01,148.0,14.03859141]
[1746584782784,26.0,148.03,148.0,14.03859141]
[1746584783474,26.0,148.02,148.01,6.75630024]
[1746584783675,26.0,148.02,148.0,6.75656973]
[1746584786295,26.0,148.02,148.0,20.79516114]
[1746584786497,26.0,148.02,147.99,20.79562658]
[1746584787306,26.0,148.02,148.0,14.03859141]
[1746584787605,26.0,148.02,147.99,20.79562658]
[1746584790799,14.03859141,148.04,148.0,14.03859141]
[1746584790998,40.03859141,148.04,148.0,14.03859141]
[1746584791306,40.03859141,148.04,147.99,6.75703517]
[1746584791307,40.03859141,148.04,147.99,20.79562658]
[1746584791980,40.03859141,148.04,148.0,14.03859141]
[1746584793007,46.79352396,148.04,147.99,14.03859141]
[1746584793208,14.03859141,148.03,147.99,14.03859141]
[1746584794797,40.03859141,148.04,148.0,20.79523898]
[1746584795201,26.0,148.04,148.0,20.79523898]
[1746584795377,40.03859141,148.04,148.0,20.79523898]
[1746584795777,26.0,148.04,148.01,14.03859141]
[1746584796202,40.03859141,148.04,148.0,20.79523898]
[1746584796387,14.03859141,148.04,148.0,20.79523898]
[1746584796592,137.7,148.05,148.02,14.03859141]
[1746584796790,137.7,148.05,148.03,14.03859141]
[1746584797007,137.7,148.05,148.03,20.79377296]
[1746584798900,137.7,148.05,148.04,14.03859141]
[1746584799091,137.7,148.08,148.04,14.03859141]
[1746584799416,137.7,148.08,148.05,14.03859141]
[1746584800913,137.7,148.08,148.05,6.75434289]
[1746584803104,14.03859141,148.06,148.02,6.7558438]
[1746584803309,14.03859141,148.06,148.02,20.79443521]
[1746584803992,14.03859141,148.06,148.02,6.7558438]
[1746584804294,14.03859141,148.06,148.02,20.79443521]
[1746584805006,144.45317353,148.08,148.02,20.79443521]
[1746584805211,14.03859141,148.06,148.02,20.79443521]
[1746584805612,14.03859141,148.07,148.02,20.79443521]
[1746584806288,14.03859141,148.07,148.03,14.03859141]
[1746584806811,137.7,148.06,148.03,14.03859141]
[1746584809025,137.7,148.06,148.04,6.75493109]
[1746584811732,151.73859141,148.06,148.04,6.75493109]
[1746584812234,151.73859141,148.06,148.03,6.75525196]
[1746584815341,151.73859141,148.06,148.01,23.64705086]
[1746584815523,151.73859141,148.06,148.02,14.03859141]
[1746584816234,137.7,148.06,148.01,23.64705086]
[1746584816417,151.73859141,148.06,148.02,14.03859141]
[1746584817148,137.7,148.06,148.02,14.03859141]
[1746584817836,137.7,148.06,148.03,6.75538742]
[1746584819819,137.7,148.06,148.02,14.03859141]
[1746584819820,151.73859141,148.06,148.01,6.75630024]
[1746584820133,14.03859141,148.04,148.01,6.75630024]
[1746584822326,14.03859141,148.02,147.96,34.13631495]
[1746584822531,14.03859141,148.01,147.97,14.03859141]
[1746584822735,14.03859141,148.02,147.97,14.03859141]
[1746584823236,14.03859141,148.0,147.97,6.75812664]
[1746584823730,14.03859141,148.01,147.97,6.75812664]
[1746584824234,14.03859141,148.01,147.97,20.79671805]
[1746584824735,14.03859141,147.98,147.95,6.7588543]
[1746584824942,14.03859141,147.97,147.94,6.75939169]
[1746584828745,14.03859141,147.97,147.92,17.24]
[1746584828926,14.03859141,147.95,147.91,6.76086809]
[1746584829128,14.03859141,147.95,147.91,20.7994595]
[1746584829433,14.03859141,147.95,147.91,6.76086809]
[1746584830027,14.03859141,147.94,147.91,6.76086809]
[1746584830230,14.03859141,147.94,147.9,6.76119736]
[1746584830231,14.03859141,147.93,147.9,6.76119736]
[1746584830436,151.73859141,147.92,147.89,6.76170081]
[1746584830631,151.73859141,147.92,147.88,38.04065073]
[1746584830847,151.73859141,147.92,147.88,6.76205932]
[1746584831551,151.73859141,147.92,147.87,20.80117253]
[1746584831552,14.03859141,147.91,147.87,20.80117253]
[1746584831730,137.7,147.9,147.87,20.80117253]
[1746584833435,137.7,147.9,147.87,6.76258112]
[1746584833755,137.7,147.9,147.87,20.80117253]
[1746584834256,137.7,147.9,147.89,14.03859141]
[1746584834459,137.7,147.9,147.89,20.80037381]
[1746584834951,137.7,147.94,147.89,37.70482982]
[1746584835143,137.7,147.94,147.91,14.03859141]
[1746584835657,137.7,147.94,147.9,14.03859141]
[1746584835950,137.7,147.94,147.89,23.66623841]
[1746584836161,137.7,147.94,147.91,6.76086809]
[1746584836370,137.7,147.94,147.91,20.7994595]
[1746584841360,137.7,147.94,147.91,6.76086809]
[1746584841667,137.7,147.94,147.92,14.03859141]
[1746584841838,137.7,147.94,147.93,20.79854544]
[1746584842537,40.03859141,147.98,147.93,20.79854544]
[1746584842740,26.0,147.98,147.94,14.03859141]
[1746584842940,26.0,147.98,147.95,14.03859141]
[1746584843156,40.03859141,147.98,147.94,14.03859141]
[1746584844038,40.03859141,147.98,147.95,6.75904021]
[1746584844460,26.0,147.98,147.95,6.75904021]
[1746584845481,26.0,147.98,147.96,14.03859141]
[1746584845642,26.0,147.98,147.95,20.79763162]
[1746584846160,137.7,147.99,147.96,14.03859141]
[1746584847469,137.7,147.99,147.95,30.93619195]
[1746584848881,151.73859141,147.99,147.94,20.7980885]
[1746584849180,151.73859141,147.99,147.95,14.03859141]
[1746584850584,137.7,147.99,147.96,6.7585834]
[1746584851493,137.7,147.99,147.96,20.79717481]
[1746584851775,137.7,147.99,147.97,14.03859141]
[1746584853684,137.7,147.99,147.98,6.75766995]
[1746584855065,137.7,147.99,147.98,20.79626136]
[1746584857791,177.73859141,148.03,147.98,20.79626136]
[1746584858002,177.73859141,148.03,147.99,14.03859141]
[1746584858791,163.7,148.03,147.99,14.03859141]
[1746584858992,177.73859141,148.03,147.99,14.03859141]
[1746584860092,177.73859141,148.03,148.0,6.75675675]
[1746584860681,14.03859141,148.01,148.0,6.75675675]
[1746584861485,14.03859141,148.02,148.0,6.75675675]
[1746584861795,14.03859141,148.02,147.98,6.75766995]
[1746584862495,14.03859141,148.02,147.98,20.79626136]
[1746584863193,177.73859141,148.03,147.99,14.03859141]
[1746584863489,177.73859141,148.03,148.0,14.03859141]
[1746584863490,163.7,148.03,148.0,14.03859141]
[1746584864798,163.7,148.03,148.01,6.75630024]
[1746584865699,163.7,148.03,148.0,6.75655737]
[1746584866080,177.73859141,148.03,148.0,6.75655737]
[1746584868203,163.7,148.03,148.0,6.75655737]
[1746584870508,177.73859141,148.03,148.0,6.75655737]
[1746584871605,163.7,148.03,148.0,6.75655737]
[1746584876703,151.73859141,148.03,148.0,6.75655737]
[1746584877824,151.73859141,148.03,147.98,1.531]
[1746584878107,14.03859141,148.02,147.97,31.15859141]
[1746584878588,14.03859141,148.01,147.97,37.91657231]
[1746584879494,14.03859141,148.0,147.97,17.12]
[1746584879685,14.03859141,148.0,147.96,6.75837855]
[1746584881581,14.03859141,148.0,147.96,20.79696996]
[1746584881785,14.03859141,148.01,147.97,14.03859141]
[1746584882618,137.7,148.02,147.99,14.03859141]
[1746584882787,40.03859141,148.04,147.99,14.03859141]
[1746584883100,40.03859141,148.04,148.0,14.03859141]
[1746584883101,26.0,148.04,148.0,14.03859141]
[1746584883689,26.0,148.04,148.01,14.03859141]
[1746584884713,26.0,148.04,148.01,20.79459841]
[1746584884893,163.7,148.05,148.01,20.79459841]
[1746584885207,14.03859141,148.07,148.03,14.03859141]
[1746584885405,137.7,148.09,148.04,14.03859141]
[1746584885406,144.45281679,148.09,148.04,14.03859141]
[1746584885716,163.7,148.08,148.04,14.03859141]
[1746584885916,137.7,148.08,148.04,14.03859141]
[1746584886513,137.7,148.08,148.05,14.03859141]
[1746584886707,137.7,148.08,148.05,20.79263382]
[1746584887613,137.7,148.08,148.06,14.03859141]
[1746584888697,137.7,148.08,148.05,20.79263382]
[1746584889105,137.7,148.08,148.05,6.75404241]
[1746584889292,151.73859141,148.08,148.04,6.75490122]
[1746584889500,151.73859141,148.08,148.04,20.79349263]
[1746584890424,151.73859141,148.08,148.04,6.75490122]
[1746584891933,137.7,148.08,148.04,6.75490122]
[1746584892221,151.73859141,148.08,148.04,6.75490122]
[1746584893128,151.73859141,148.08,148.04,20.79349263]
[1746584896731,151.73859141,148.08,148.04,6.75490122]
[1746584899027,14.03859141,148.07,148.03,17.12]
[1746584899212,14.03859141,148.06,148.03,17.12]
[1746584899525,14.03859141,148.05,148.0,6.75675675]
[1746584899843,14.03859141,148.05,148.01,14.03859141]
[1746584900028,14.03859141,148.05,148.0,6.75675675]
[1746584900711,14.03859141,148.05,148.01,14.03859141]
[1746584901519,14.03859141,148.04,148.0,14.03859141]
[1746584902945,14.03859141,148.04,148.0,20.7948937]
[1746584904960,14.03859141,148.04,148.0,6.75630229]
[1746584905168,14.03859141,148.03,148.0,6.75630229]
[1746584905338,14.03859141,148.01,147.97,6.75812664]
[1746584905525,14.03859141,148.0,147.97,6.75812664]
[1746584906233,14.03859141,148.01,147.97,6.75812664]
[1746584906638,14.03859141,148.01,147.97,14.03859141]
[1746584907757,14.03859141,148.01,147.98,5.04805414]
[1746584908455,14.03859141,148.01,147.97,14.03859141]
[1746584908947,14.03859141,148.01,147.98,6.75766995]
[1746584909153,14.03859141,148.02,147.98,6.75766995]
[1746584913060,14.03859141,148.0,147.98,6.75766995]
[1746584914360,14.03859141,148.01,147.97,6.75812664]
[1746584914569,14.03859141,148.01,147.97,20.79671805]
[1746584915370,14.03859141,148.01,147.97,6.75812664]
[1746584916776,14.03859141,148.01,147.97,20.79671805]
[1746584918957,14.03859141,148.01,147.97,6.75812664]
[1746584921173,14.03859141,148.01,147.97,20.79671805]
[1746584921671,14.03859141,148.02,147.97,20.79671805]
[1746584923379,14.03859141,148.01,147.96,23.65492968]
[1746584923548,14.03859141,148.01,147.96,37.69352109]
[1746584924164,14.03859141,148.01,147.96,23.65492968]
[1746584924372,14.03859141,148.01,147.96,37.69352109]
[1746584925879,14.03859141,148.01,147.98,6.75766995]
[1746584935599,14.03859141,147.99,147.95,18.5742]
[1746584935881,14.03859141,147.99,147.95,39.37163645]
[1746584937785,151.73859141,148.0,147.95,6.75884504]
[1746584937971,151.73859141,148.0,147.95,20.79743645]
[1746584938767,137.7,147.99,147.95,20.79743645]
[1746584940292,137.7,147.99,147.97,14.03859141]
[1746584940594,137.7,147.99,147.98,14.03859141]
[1746584941490,137.7,147.99,147.97,14.03859141]
[1746584941994,137.7,147.99,147.98,14.03859141]
[1746584942191,137.7,148.03,147.98,14.03859141]
[1746584942390,137.7,148.03,148.01,14.03859141]
[1746584944799,137.7,148.03,148.02,6.7558438]
[1746584945096,14.03859141,148.06,148.02,6.7558438]
[1746584945400,6.0286,148.08,148.02,6.7558438]
[1746584945401,14.03859141,148.05,148.02,6.7558438]
[1746584946198,170.45360238,148.07,148.02,6.7558438]
[1746584946492,14.03859141,148.05,148.02,6.7558438]
[1746584948399,170.45360238,148.07,148.02,6.7558438]
[1746584948571,14.03859141,148.05,148.02,6.7558438]
[1746584949288,163.7,148.07,148.02,6.7558438]
[1746584949490,163.7,148.07,148.03,14.03859141]
[1746584949701,163.7,148.07,148.04,14.03859141]
[1746584949702,137.7,148.07,148.04,14.03859141]
[1746584949871,6.5632,148.12,148.06,14.03859141]
[1746584950076,6.5632,148.12,148.03,35.64964886]
[1746584950077,46.60179141,148.12,148.07,14.03859141]
[1746584950272,14.03859141,148.11,148.07,14.03859141]
[1746584950490,14.03859141,148.1,148.06,14.03859141]
[1746584950676,39.31460165,148.12,148.05,14.03859141]
[1746584950879,14.03859141,148.1,148.06,5.05107441]
[1746584951598,14.03859141,148.1,148.06,6.75401864]
[1746584953800,151.73859141,148.1,148.06,6.75401864]
[1746584957303,151.73859141,148.1,148.06,14.03859141]
[1746584957489,137.7,148.1,148.06,14.03859141]
[1746584958001,151.73859141,148.1,148.06,14.03859141]
[1746584958497,137.7,148.1,148.08,14.03859141]
[1746584959517,137.7,148.1,148.09,6.75265041]
[1746584960803,137.7,148.1,148.09,20.79124182]
[1746584961286,151.73859141,148.15,148.09,20.79124182]
[1746584961485,151.73859141,148.15,148.11,14.03859141]
[1746584962102,137.7,148.15,148.11,14.03859141]
[1746584962304,137.7,148.15,148.09,23.63427644]
[1746584962705,137.7,148.15,148.11,14.03859141]
[1746584963915,137.7,148.15,148.11,20.79024469]
[1746584964201,151.73859141,148.15,148.11,14.03859141]
[1746584964499,14.03859141,148.14,148.09,14.03859141]
[1746584965004,14.03859141,148.12,148.08,17.0]
[1746584965390,14.03859141,148.12,148.08,37.79168384]
[1746584965592,144.449925,148.15,148.08,37.79168384]
[1746584965791,14.03859141,148.13,148.08,37.79168384]
[1746584966604,14.03859141,148.13,148.09,14.03859141]
[1746584967306,6.75073617,148.14,148.09,14.03859141]
[1746584967604,14.03859141,148.14,148.1,14.03859141]
[1746584967987,137.7,148.15,148.1,14.03859141]
[1746584968193,151.73859141,148.15,148.1,14.03859141]
[1746584968491,151.73859141,148.15,148.11,14.03859141]
[1746584969601,151.73859141,148.15,148.1,14.03859141]
[1746584970620,137.7,148.15,148.11,6.75173857]
[1746584970808,151.73859141,148.15,148.11,6.75173857]
[1746584971809,14.03859141,148.14,148.11,6.75173857]
[1746584972721,26.0,148.15,148.11,20.79032998]
[1746584972898,14.03859141,148.14,148.11,6.75173857]
[1746584975710,14.03859141,148.14,148.1,20.79062474]
[1746584976008,14.03859141,148.14,148.1,6.75203333]
[1746584978134,14.03859141,148.14,148.1,14.03859141]
[1746584979727,14.03859141,148.13,148.09,20.79124182]
[1746584980725,6.7510463,148.13,148.08,17.0]
[1746584980927,14.03859141,148.11,148.06,6.75401864]
[1746584981104,14.03859141,148.1,148.05,22.38957342]
[1746584981424,14.03859141,148.1,148.06,14.03859141]
[1746584982527,14.03859141,148.1,148.06,20.79234531]
[1746584983825,14.03859141,148.09,148.06,6.7537539]
[1746584984029,14.03859141,148.09,148.05,6.754442]
[1746584984402,14.03859141,148.07,148.04,16.94]
[1746584984609,14.03859141,148.07,148.03,20.79371606]
[1746584984821,14.03859141,148.07,148.03,6.75512465]
[1746584985930,14.03859141,148.06,148.03,6.75512465]
[1746584986108,14.03859141,148.07,148.03,6.75512465]
[1746584986309,14.03859141,148.07,148.03,20.79371606]
[1746584986526,14.03859141,148.08,148.03,20.79371606]
[1746584987431,14.03859141,148.07,148.03,20.79371606]
[1746584988635,14.03859141,148.08,148.04,14.03859141]
[1746584989643,14.03859141,148.08,148.03,20.79371606]
[1746584990230,14.03859141,148.07,148.03,20.79371606]
[1746584990635,14.03859141,148.07,148.03,20.79394928]
[1746584991633,14.03859141,148.07,148.03,6.75535787]
[1746584992132,14.03859141,148.07,148.03,20.79394928]
[1746584992539,151.73859141,148.08,148.03,20.79394928]
[1746584993537,14.03859141,148.07,148.03,20.79394928]
[1746584996815,14.03859141,148.05,148.02,6.75566407]
[1746584999242,14.03859141,148.04,148.0,16.94]
[1746584999437,14.03859141,148.03,148.0,23.69638981]
[1746584999839,14.03859141,148.02,147.99,6.75703981]
[1746585000143,14.03859141,148.03,147.99,6.75703981]
[1746585000336,14.03859141,148.03,147.99,20.79563122]
[1746585000530,14.03859141,148.04,147.99,20.79563122]
[1746585000940,170.4541599,148.06,147.99,20.79563122]
[1746585001143,14.03859141,148.04,147.99,20.79563122]
[1746585001845,14.03859141,148.03,147.99,20.79563122]
[1746585002138,14.03859141,148.02,147.99,6.7571561]
[1746585002521,14.03859141,148.01,147.99,6.7571561]
[1746585003745,14.03859141,148.02,147.98,6.75766995]
[1746585004948,14.03859141,148.02,147.98,14.03859141]
[1746585005956,14.03859141,148.03,147.98,14.03859141]
[1746585007258,14.03859141,148.03,147.99,6.75721332]
[1746585007456,14.03859141,148.03,147.99,20.79580473]
[1746585010058,14.03859141,148.02,147.99,6.75721332]
[1746585010858,14.03859141,148.03,147.99,20.79580473]
[1746585011366,137.7,148.04,148.0,14.03859141]
[1746585011659,151.73859141,148.04,148.0,14.03859141]
[1746585012656,151.73859141,148.04,148.01,6.75630024]
[1746585013854,137.7,148.04,148.01,20.79489165]
[1746585015853,137.7,148.04,148.01,6.75630024]
[1746585018262,14.03859141,148.03,148.0,6.75655682]
[1746585019459,14.03859141,148.03,147.98,16.89379915]
[1746585019637,14.03859141,148.03,147.98,14.03859141]
[1746585020259,14.03859141,148.03,147.99,14.03859141]
[1746585021765,151.73859141,148.04,148.0,6.75675675]
[1746585023178,137.7,148.04,148.0,6.75675675]
[1746585023360,137.7,148.04,148.0,20.79534816]
[1746585024362,151.73859141,148.04,148.0,20.79534816]
[1746585025360,151.73859141,148.04,148.0,6.75675675]
[1746585027268,151.73859141,148.04,148.0,20.79534816]
[1746585027668,137.7,148.04,148.0,20.79534816]
[1746585027971,137.7,148.04,148.03,14.03859141]
[1746585028154,137.7,148.08,148.03,14.03859141]
[1746585028347,26.0,148.07,148.04,14.03859141]
[1746585028562,26.0,148.07,148.03,14.03859141]
[1746585028965,26.0,148.07,148.04,6.75493109]
[1746585030270,26.0,148.07,148.04,20.7935225]
[1746585030766,26.0,148.07,148.04,6.75493109]
[1746585030964,26.0,148.07,148.04,20.7935225]
[1746585032564,40.03859141,148.07,148.04,6.75493109]
[1746585035273,40.03859141,148.07,148.03,6.75538742]
[1746585037276,40.03859141,148.07,148.03,14.03859141]
[1746585037875,26.0,148.07,148.03,14.03859141]
[1746585040568,151.73859141,148.08,148.04,20.7935225]
[1746585040867,137.7,148.08,148.04,20.7935225]
[1746585041262,137.7,148.08,148.05,14.03859141]
[1746585042672,137.7,148.08,148.06,6.75401864]
[1746585043954,24.69426157,148.13,148.06,20.79261005]
[1746585043955,144.45147887,148.12,148.06,20.79261005]
[1746585044185,137.7,148.11,148.06,20.79261005]
[1746585044492,14.03859141,148.12,148.07,14.03859141]
[1746585044657,40.03859141,148.12,148.07,14.03859141]
[1746585045080,14.03859141,148.12,148.08,14.03859141]
[1746585045378,14.03859141,148.12,148.09,6.75265041]
[1746585046878,14.03859141,148.12,148.07,20.79215391]
[1746585047081,14.03859141,148.11,148.07,6.7535625]
[1746585048660,170.45057295,148.14,148.07,6.7535625]
[1746585048862,170.45057295,148.14,148.07,20.79215391]
[1746585049083,14.03859141,148.11,148.07,20.79215391]
[1746585052193,14.03859141,148.09,148.06,23.59385878]
[1746585052388,14.03859141,148.08,148.06,23.59385878]
[1746585052587,14.03859141,148.07,148.01,24.97905152]
[1746585052760,14.03859141,148.06,148.02,23.5758438]
[1746585053074,14.03859141,148.05,148.02,23.5758438]
[1746585053870,14.03859141,148.04,148.02,16.82]
[1746585054180,14.03859141,148.03,148.0,6.75659255]
[1746585054581,14.03859141,148.02,148.0,6.75659255]
[1746585054787,14.03859141,148.03,148.0,6.75659255]
[1746585056690,14.03859141,148.04,148.0,6.75659255]
[1746585056889,151.73859141,148.05,148.01,14.03859141]
[1746585057063,26.0,148.05,148.02,14.03859141]
[1746585057264,14.03859141,148.07,148.03,20.79397883]
[1746585057462,163.7,148.08,148.03,20.79397883]
[1746585057758,14.03859141,148.07,148.03,20.79397883]
[1746585057977,14.03859141,148.06,148.03,6.75538742]
[1746585059686,14.03859141,148.05,148.03,6.75538742]
[1746585059987,14.03859141,148.05,148.02,6.75566132]
[1746585061708,14.03859141,148.05,148.01,6.75630024]
[1746585061905,14.03859141,148.05,148.01,20.79489165]
[1746585062069,14.03859141,148.06,148.01,20.79489165]
[1746585062602,14.03859141,148.05,148.01,20.79489165]
[1746585062890,14.03859141,148.04,148.0,6.75657726]
[1746585063100,14.03859141,148.03,148.0,6.75657726]
[1746585063894,14.03859141,148.03,147.99,23.57710135]
[1746585064280,14.03859141,148.02,147.99,16.82]
[1746585064582,14.03859141,148.01,147.99,16.82]
[1746585065700,14.03859141,148.01,147.98,6.75735253]
[1746585066702,14.03859141,148.02,147.98,6.75735253]
[1746585067408,14.03859141,148.01,147.98,6.75735253]
[1746585067596,14.03859141,148.01,147.95,16.78]
[1746585067898,14.03859141,148.01,147.96,14.03859141]
[1746585068489,137.7,148.02,147.97,14.03859141]
[1746585068687,14.03859141,148.01,147.97,14.03859141]
[1746585069481,14.03859141,148.0,147.96,6.7585834]
[1746585069676,14.03859141,148.0,147.96,20.79717481]
[1746585069981,170.45603201,148.02,147.96,20.79717481]
[1746585069982,14.03859141,148.01,147.96,20.79717481]
[1746585070200,14.03859141,148.0,147.96,20.79717481]
[1746585070504,14.03859141,148.0,147.95,37.57745237]
[1746585070710,14.03859141,147.99,147.95,37.57745237]
[1746585070893,14.03859141,147.99,147.95,23.53886096]
[1746585071096,14.03859141,147.98,147.95,23.53886096]
[1746585071306,14.03859141,147.98,147.94,6.75930498]
[1746585071486,13.93602665,147.98,147.94,6.75930498]
[1746585071684,14.03859141,147.97,147.94,6.75930498]
[1746585072295,14.03859141,147.98,147.94,6.75930498]
[1746585072693,14.03859141,147.97,147.94,6.75930498]
[1746585073110,14.03859141,147.98,147.94,6.75930498]
[1746585073707,14.03859141,147.98,147.94,20.79789639]
[1746585075811,14.03859141,147.98,147.94,6.75930498]
[1746585076014,14.03859141,147.97,147.94,6.75930498]